bitfinex-derivatives/quotes_SOLF0:USTF0_20260211
["timestamp","ask_amount","ask_price","bid_price","bid_amount"]
[1770784793127,18.70016401,82.197,82.131,20.29067134]
[1770784793733,10.9575,82.189,82.131,20.29067134]
[1770784794334,10.9579,82.186,82.131,20.29067134]
[1770784794635,8.10142512,82.2,82.114,20.29067134]
[1770784794636,18.70016401,82.185,82.114,20.29067134]
[1770784796537,8.10142512,82.19,82.114,20.29067134]
[1770784796538,18.70016401,82.182,82.114,20.29067134]
[1770784796938,26.83024111,82.2,82.114,20.29067134]
[1770784797140,18.70016401,82.199,82.114,20.29067134]
[1770784797434,18.70016401,82.179,82.083,20.29067134]
[1770784798142,18.70016401,82.17,82.091,20.29067134]
[1770784798633,18.70016401,82.17,82.082,97.1]
[1770784798634,18.70016401,82.17,82.101,20.29067134]
[1770784798828,18.70016401,82.17,82.083,20.29067134]
[1770784799030,10.71691777,82.204,81.972,170.8997]
[1770784799031,18.70016401,82.139,82.051,20.29067134]
[1770784799539,18.70016401,82.139,82.067,31.26437134]
[1770784799739,18.70016401,82.139,82.068,20.29067134]
[1770784800337,18.70016401,82.139,82.071,20.29067134]
[1770784800734,18.70016401,82.138,82.071,20.29067134]
[1770784801135,18.70016401,82.164,82.091,20.29067134]
[1770784802037,18.70016401,82.164,82.107,20.29067134]
[1770784802237,26.0,82.198,82.09,8.1300771]
[1770784802238,18.70016401,82.202,82.111,20.29067134]
[1770784802434,8.1300771,82.21,82.111,20.29067134]
[1770784802435,36.41,82.186,82.111,20.29067134]
[1770784802636,8.1300771,82.19,82.09,8.1300771]
[1770784802637,18.70016401,82.169,82.09,8.1300771]
[1770784803039,18.70016401,82.158,82.085,20.29067134]
[1770784803344,18.70016401,82.149,82.085,20.29067134]
[1770784803543,97.12,82.185,82.068,97.12]
[1770784803544,18.70016401,82.137,82.068,117.41067134]
[1770784803845,18.70016401,82.137,82.071,20.29067134]
[1770784804343,18.70016401,82.169,82.081,20.29067134]
[1770784804543,18.70016401,82.169,82.088,20.29067134]
[1770784806040,10.9618,82.157,82.09,31.26117134]
[1770784806242,10.9618,82.157,82.091,20.29067134]
[1770784806446,18.70016401,82.169,82.091,20.29067134]
[1770784807242,29.66036401,82.169,82.105,10.9686]
[1770784807547,18.70016401,82.168,82.105,10.9686]
[1770784807743,10.9605,82.166,82.105,10.9686]
[1770784807942,18.70016401,82.165,82.091,20.29067134]
[1770784808448,18.70016401,82.146,82.073,20.29067134]
[1770784808747,18.70016401,82.146,82.075,20.29067134]
[1770784808948,18.70016401,82.135,82.075,20.29067134]
[1770784809738,18.70016401,82.135,82.076,10.9724]
[1770784810246,18.70016401,82.135,82.079,10.9721]
[1770784811241,10.9651,82.132,82.067,10.9737]
[1770784811448,18.70016401,82.131,82.067,10.9737]
[1770784812052,18.70016401,82.131,82.076,10.9724]
[1770784812445,18.70016401,82.131,82.061,20.29067134]
[1770784812644,18.70016401,82.131,82.05,8.1300771]
[1770784812645,18.70016401,82.131,82.067,20.29067134]
[1770784814354,8.1300771,82.16,82.082,20.29067134]
[1770784814355,18.70016401,82.15,82.082,20.29067134]
[1770784815349,18.70016401,82.148,82.082,20.29067134]
[1770784816448,18.70016401,82.144,82.073,10.9728]
[1770784817446,18.70016401,82.144,82.083,20.29067134]
[1770784818054,18.70016401,82.144,82.097,10.9697]
[1770784818353,18.70016401,82.144,82.083,20.29067134]
[1770784819451,18.70016401,82.168,82.101,20.29067134]
[1770784820047,18.70016401,82.168,82.104,20.29067134]
[1770784820248,19.46680918,82.188,82.104,20.29067134]
[1770784820451,19.46680918,82.188,82.051,21.9517]
[1770784820452,19.46680918,82.188,82.121,19.88638816]
[1770784820851,19.46680918,82.188,82.133,19.88638816]
[1770784821945,19.46680918,82.206,82.133,19.88638816]
[1770784822348,19.46680918,82.206,82.12,8.1300771]
[1770784822349,10.9528,82.224,82.148,19.88638816]
[1770784822747,30.41960918,82.224,82.148,19.88638816]
[1770784823154,19.46680918,82.237,82.161,19.88638816]
[1770784823355,19.46680918,82.229,82.161,19.88638816]
[1770784823560,19.46680918,82.229,82.14,8.1300771]
[1770784823561,19.46680918,82.229,82.141,19.88638816]
[1770784823762,19.46680918,82.209,82.121,19.88638816]
[1770784824155,19.46680918,82.209,82.101,19.378047]
[1770784824357,19.24937155,82.184,82.101,19.378047]
[1770784824855,19.24937155,82.158,82.088,19.378047]
[1770784825253,19.24937155,82.158,82.091,19.378047]
[1770784826147,19.24937155,82.177,82.091,19.378047]
[1770784826754,19.24937155,82.177,82.094,10.9701]
[1770784827061,19.24937155,82.177,82.095,19.378047]
[1770784827857,19.24937155,82.159,82.077,19.378047]
[1770784828456,19.24937155,82.159,82.083,19.378047]
[1770784829356,10.9616,82.158,82.087,10.971]
[1770784829557,19.24937155,82.157,82.087,10.971]
[1770784829759,19.24937155,82.157,82.083,19.378047]
[1770784829959,19.24937155,82.157,82.071,19.378047]
[1770784830159,19.24937155,82.14,82.071,19.378047]
[1770784830359,19.24937155,82.139,82.051,19.378047]
[1770784830562,10.9659,82.126,82.054,19.378047]
[1770784830869,19.24937155,82.158,82.08,8.1300771]
[1770784831065,170.4483,82.19,82.061,19.378047]
[1770784831066,19.24937155,82.149,82.061,19.378047]
[1770784831766,19.24937155,82.148,82.069,19.378047]
[1770784832862,19.24937155,82.146,82.069,19.378047]
[1770784834167,33.66050713,82.225,82.15,10.9626]
[1770784834469,33.66050713,82.225,82.14,8.1300771]
[1770784834662,44.61320713,82.225,82.14,8.1300771]
[1770784834963,97.18,82.25,82.121,97.18]
[1770784834964,33.66043455,82.224,82.121,97.18]
[1770784835159,33.66043455,82.209,82.11,8.1300771]
[1770784835365,34.03573694,82.208,82.13,8.1300771]
[1770784835967,34.03573694,82.208,82.145,10.9633]
[1770784836168,34.03573694,82.208,82.13,8.1300771]
[1770784838268,34.03573694,82.208,82.144,10.9634]
[1770784838463,34.33741652,82.229,82.15,8.1300771]
[1770784839877,34.33795241,82.227,82.15,8.1300771]
[1770784840671,34.33795241,82.227,82.151,10.9625]
[1770784841169,34.33757186,82.225,82.151,10.9625]
[1770784841359,34.33757186,82.225,82.15,8.1300771]
[1770784842470,8.1300771,82.25,82.15,8.1300771]
[1770784842471,35.05726598,82.221,82.15,8.1300771]
[1770784842768,35.05726598,82.209,82.13,8.1300771]
[1770784842972,35.05726598,82.184,82.1,8.1300771]
[1770784843568,35.05726598,82.184,82.112,10.9676]
[1770784843873,35.05726598,82.184,82.1,8.1300771]
[1770784844067,35.05726598,82.184,82.12,8.1300771]
[1770784844269,35.05726598,82.184,82.124,10.9661]
[1770784844972,34.91141838,82.207,82.135,10.9645]
[1770784845371,34.85033782,82.204,82.121,10.9664]
[1770784845573,34.85033782,82.204,82.12,8.1300771]
[1770784845869,34.85033782,82.204,82.141,10.9638]
[1770784847273,34.85033782,82.204,82.151,10.9624]
[1770784847474,10.9531,82.222,82.14,8.1300771]
[1770784847475,34.85248377,82.221,82.14,8.1300771]
[1770784848073,34.85248377,82.219,82.123,97.12]
[1770784848274,196.3274,82.249,82.123,97.12]
[1770784848275,34.85248377,82.209,82.123,97.12]
[1770784848478,34.85248377,82.209,82.12,8.1300771]
[1770784848974,34.85261934,82.193,82.12,8.1300771]
[1770784850475,34.85261934,82.193,82.095,97.12]
[1770784850476,34.7630099,82.192,82.132,10.965]
[1770784850674,34.7630099,82.192,82.095,97.12]
[1770784850675,34.7630099,82.192,82.11,8.1300771]
[1770784850976,34.7630099,82.19,82.122,10.9663]
[1770784851178,34.7630099,82.19,82.11,8.1300771]
[1770784851583,34.7630099,82.19,82.131,10.965]
[1770784851882,34.7630099,82.19,82.11,8.1300771]
[1770784852088,42.893087,82.19,82.11,8.1300771]
[1770784852487,34.79140382,82.177,82.12,10.9666]
[1770784853691,34.75817977,82.175,82.12,10.9666]
[1770784855993,34.74411863,82.172,82.085,97.12]
[1770784856194,34.74411863,82.169,82.085,97.12]
[1770784857803,34.70815295,82.154,82.087,10.971]
[1770784857994,34.70815295,82.154,82.063,15.05013053]
[1770784857995,34.70815295,82.154,82.06,8.13109616]
[1770784858697,34.70815363,82.14,82.077,10.9724]
[1770784859298,34.70815363,82.14,82.09,10.9706]
[1770784860199,34.70815363,82.14,82.08,8.13987273]
[1770784860405,34.66282876,82.179,82.08,8.13987273]
[1770784861104,34.66282876,82.146,82.08,8.13987273]
[1770784861600,34.66282876,82.146,82.092,10.9703]
[1770784862394,8.13987273,82.16,82.08,8.13987273]
[1770784862395,34.66229441,82.144,82.082,10.9717]
[1770784863507,34.66229441,82.144,82.091,10.9705]
[1770784864595,34.66229441,82.144,82.101,10.9691]
[1770784865203,34.66229441,82.144,82.091,10.9704]
[1770784866599,34.65501038,82.138,82.078,10.9722]
[1770784866806,34.65501038,82.138,82.051,97.14]
[1770784867009,34.65501038,82.138,82.04,8.13987273]
[1770784867307,34.64806407,82.114,82.048,10.9762]
[1770784867809,34.64806407,82.106,82.048,10.9762]
[1770784868006,34.64806407,82.106,82.058,10.9749]
[1770784868304,34.64806407,82.106,82.04,8.13987273]
[1770784868711,34.64806407,82.106,82.057,10.975]
[1770784869011,34.64806407,82.106,82.03,97.16]
[1770784869207,34.64802147,82.095,82.03,97.16]
[1770784870416,34.64802147,82.095,82.04,8.13987273]
[1770784870803,34.65717167,82.12,82.04,8.13987273]
[1770784871305,34.65717167,82.12,82.06,8.13987273]
[1770784871611,34.65717167,82.12,82.069,10.9733]
[1770784872609,34.65717167,82.12,82.06,8.13987273]
[1770784872802,34.65717167,82.12,82.04,105.31987273]
[1770784873215,34.40334566,82.107,82.039,10.9774]
[1770784873806,34.43246073,82.101,82.039,10.9774]
[1770784874503,34.43227517,82.099,82.039,10.9774]
[1770784875704,34.48246745,82.097,82.039,10.9774]
[1770784876714,34.48246745,82.097,82.048,10.9762]
[1770784877111,34.48231906,82.115,82.04,8.13987273]
[1770784878116,34.48231906,82.115,82.058,10.9749]
[1770784878515,34.48311842,82.113,82.04,8.13987273]
[1770784878707,34.48311842,82.113,82.047,10.9764]
[1770784879714,34.48620966,82.11,82.047,10.9764]
[1770784880014,8.13987273,82.13,82.04,8.13987273]
[1770784880015,34.48620966,82.129,82.04,8.13987273]
[1770784880316,34.48572185,82.127,82.04,8.13987273]
[1770784880711,34.48572185,82.127,82.068,10.9736]
[1770784880908,34.48572185,82.122,82.04,8.13987273]
[1770784881814,144.97,82.17,82.04,8.13987273]
[1770784881815,34.49034321,82.119,82.04,8.13987273]
[1770784882018,34.49034321,82.119,81.989,22.44175622]
[1770784882220,34.49034321,82.099,82.01,8.13987273]
[1770784882808,8.13987273,82.1,82.011,10.9811]
[1770784882809,34.49021394,82.08,82.011,10.9811]
[1770784883014,42.63008667,82.08,81.984,97.2]
[1770784883219,42.63008667,82.08,81.98,8.13987273]
[1770784883715,34.49312681,82.056,81.96,8.13987273]
[1770784883916,34.49312681,82.019,81.94,8.13987273]
[1770784884114,34.49312681,81.994,81.92,8.13987273]
[1770784884607,34.49269606,82.014,81.94,8.13987273]
[1770784885013,34.49269606,82.014,81.946,10.9899]
[1770784885213,34.49269606,82.014,81.96,8.13987273]
[1770784885822,34.75102334,82.034,81.96,8.13987273]
[1770784886319,34.75102334,82.032,81.949,10.9894]
[1770784886718,34.75102334,82.032,81.941,10.9905]
[1770784887115,34.75102334,82.032,81.94,8.13987273]
[1770784887317,34.75102334,82.032,81.868,29.46085574]
[1770784887318,35.65629005,82.009,81.875,171.1026]
[1770784887618,35.65629005,82.009,81.9,8.13987273]
[1770784888017,35.65629005,81.996,81.918,10.9936]
[1770784889022,35.65629005,81.996,81.933,10.9916]
[1770784889416,35.65629005,81.996,81.945,10.99]
[1770784890015,35.65629005,81.996,81.9,8.13987273]
[1770784890016,35.46125096,82.028,81.94,8.13987273]
[1770784891213,35.46125096,82.028,81.955,10.9886]
[1770784891619,35.46125096,82.028,81.967,10.987]
[1770784892123,35.46125096,82.028,81.94,8.13987273]
[1770784892621,35.46125096,82.028,81.96,8.13987273]
[1770784893012,35.46125096,82.028,81.978,10.9855]
[1770784893321,35.40272622,82.061,81.98,8.13987273]
[1770784893915,35.40272622,82.061,81.971,97.28]
[1770784894217,35.40272622,82.061,81.942,36.41]
[1770784894218,35.40335499,82.082,81.964,170.9174]
[1770784894423,35.40335499,82.082,81.99,8.13987273]
[1770784895018,35.40360606,82.049,81.918,36.41]
[1770784895213,35.40360606,82.049,81.982,10.985]
[1770784896009,35.40360606,82.049,81.97,10.9866]
[1770784896220,8.13987273,82.03,81.93,8.13987273]
[1770784896418,34.761962,82.029,81.93,8.13987273]
[1770784896820,34.761962,82.029,81.95,8.13987273]
[1770784897523,34.26709652,82.048,81.97,8.13987273]
[1770784898320,34.26709652,82.048,81.98,8.13987273]
[1770784898521,34.26709652,82.048,81.953,97.28]
[1770784898719,34.26709652,82.048,81.978,10.9855]
[1770784900523,34.26709652,82.048,81.989,10.984]
[1770784901926,109.4,82.085,81.97,8.13987273]
[1770784901927,33.99570789,82.068,81.99,8.13987273]
[1770784902130,33.99570789,82.068,82.01,8.13987273]
[1770784902333,33.99570789,82.068,81.99,8.13987273]
[1770784903024,33.99570789,82.068,82.005,10.9819]
[1770784903528,33.99570789,82.068,81.994,10.9834]
[1770784904134,33.80821516,82.066,82.004,10.9821]
[1770784904731,33.80821516,82.066,82.014,10.9808]
[1770784907531,33.72212344,82.084,82.02,8.13987273]
[1770784907923,33.72212344,82.084,82.03,10.9786]
[1770784908729,33.72212344,82.084,82.0,8.13987273]
[1770784909226,33.72212344,82.084,81.987,97.28]
[1770784909433,33.72212344,82.084,82.0,8.13987273]
[1770784909631,33.66442288,82.109,82.02,8.13987273]
[1770784910333,33.66442288,82.109,82.01,8.13987273]
[1770784910924,33.66545688,82.096,82.029,10.9788]
[1770784911332,33.66545688,82.096,82.01,8.13987273]
[1770784912631,8.13987273,82.13,81.97,8.13987273]
[1770784912632,33.65626697,82.079,81.97,8.13987273]
[1770784912838,33.65626697,82.079,81.971,97.28]
[1770784913137,33.65626697,82.077,81.99,8.13987273]
[1770784913933,33.65626697,82.077,81.975,36.41]
[1770784913934,33.65626697,82.077,82.024,10.9795]
[1770784914134,33.65626697,82.077,82.0,8.13987273]
[1770784914839,33.68967376,82.075,82.014,10.9808]
[1770784915340,33.68967376,82.075,81.994,97.26]
[1770784915341,33.68967376,82.075,82.015,10.9806]
[1770784916036,33.68967376,82.075,82.024,10.9794]
[1770784916337,33.68967376,82.075,82.0,8.13987273]
[1770784916736,33.60359649,82.074,82.014,10.9808]
[1770784916937,33.60359649,82.074,81.983,97.26]
[1770784917828,33.56619012,82.072,82.003,10.9823]
[1770784918243,33.56619012,82.072,82.01,10.9813]
[1770784919837,33.55232037,82.09,82.0,8.13987273]
[1770784920440,33.55232037,82.09,82.043,10.9769]
[1770784922838,33.5695912,82.119,82.02,8.14603421]
[1770784923043,33.5695912,82.119,82.031,97.26]
[1770784923838,33.44624649,82.114,82.031,97.26]
[1770784924238,33.44624649,82.114,82.02,8.14603421]
[1770784924746,33.44624649,82.114,82.051,10.9758]
[1770784925040,27.95802287,82.099,82.0,8.14603421]
[1770784926242,27.62789845,82.097,82.0,8.14603421]
[1770784926444,27.62789845,82.097,82.02,8.14603421]
[1770784926647,27.62789845,82.097,82.02,105.40603421]
[1770784926846,27.62789845,82.097,82.05,10.9759]
[1770784928843,27.62789845,82.097,82.02,8.14603421]
[1770784929234,27.62789845,82.097,82.02,105.38603421]
[1770784929438,27.62789845,82.097,82.057,10.975]
[1770784930439,27.62789845,82.097,82.046,10.9765]
[1770784934239,27.62789845,82.097,82.021,97.24]
[1770784934240,27.2975305,82.115,82.059,10.9747]
[1770784934642,27.2975305,82.115,81.999,22.44175622]
[1770784934643,8.14603421,82.11,81.999,22.44175622]
[1770784934854,27.29676005,82.109,82.0,8.14603421]
[1770784935153,27.29676005,82.089,82.0,8.14603421]
[1770784935447,27.17199679,82.084,82.007,10.9817]
[1770784935649,27.17199679,82.084,81.986,97.24]
[1770784935948,27.17199679,82.084,82.0,8.14603421]
[1770784936751,27.17199679,82.084,82.019,10.9801]
[1770784937244,27.17199679,82.084,82.0,8.14603421]
[1770784937645,27.01556228,82.082,82.008,10.9816]
[1770784938355,27.01470635,82.079,82.008,10.9816]
[1770784938745,27.01470635,82.079,81.962,36.58]
[1770784938949,170.508,82.161,81.963,0.99445708]
[1770784938950,21.52390635,82.061,81.963,0.99445708]
[1770784939345,21.52390635,82.061,81.994,10.9835]
[1770784941856,21.59868858,82.058,81.98,10.9854]
[1770784942044,21.59868858,82.058,81.981,0.91967275]
[1770784942448,21.59868858,82.058,81.986,0.92200733]
[1770784943151,21.59868858,82.058,81.991,0.94404074]
[1770784943747,21.59868858,82.058,81.998,10.9829]
[1770784943952,21.59868858,82.058,81.991,0.94404074]
[1770784944652,21.59868858,82.058,81.993,0.43332121]
[1770784945052,21.59868858,82.058,81.971,0.43332121]
[1770784945353,21.59868858,82.058,81.984,10.9848]
[1770784946360,21.59868858,82.058,81.984,11.77351315]
[1770784947062,21.59868858,82.058,81.985,0.8092971]
[1770784947257,21.65690639,82.104,81.97,8.14603421]
[1770784947258,21.72973571,82.072,81.991,0.8092971]
[1770784947758,8.14603421,82.07,81.991,0.8092971]
[1770784947953,21.3002046,82.069,81.97,8.14603421]
[1770784948163,21.3002046,82.069,81.971,1.66835933]
[1770784948364,21.29907444,82.065,81.979,10.9854]
[1770784948661,21.29907444,82.065,81.971,1.66835933]
[1770784949849,21.15906693,82.063,81.989,10.9841]
[1770784950250,21.15906693,82.063,81.998,10.9829]
[1770784951560,21.15906693,82.063,81.96,8.14603421]
[1770784951561,21.15906693,82.063,81.985,10.9846]
[1770784952855,21.05895844,82.057,81.985,10.9846]
[1770784953569,8.14603421,82.07,81.96,8.14603421]
[1770784953570,21.17790985,82.051,81.974,10.9861]
[1770784954466,21.17681745,82.035,81.957,2.03171216]
[1770784954764,21.17681745,82.035,81.906,464.037]
[1770784954765,21.17681745,82.009,81.934,2.05290702]
[1770784954960,21.17681745,82.009,81.956,10.9885]
[1770784955361,21.17681745,82.009,81.934,2.05290702]
[1770784955558,21.17681745,82.009,81.955,10.9887]
[1770784955756,21.15670496,82.029,81.951,2.1120287]
[1770784956165,21.15670496,82.029,81.971,2.13056116]
[1770784956870,21.15670496,82.029,81.953,2.13270695]
[1770784957365,21.17287923,82.015,81.954,10.9888]
[1770784957557,21.17287923,82.015,81.936,2.11668041]
[1770784958469,21.17287923,82.015,81.953,10.9889]
[1770784958663,21.17287923,82.015,81.936,2.11668041]
[1770784959158,8.14603421,82.03,81.936,2.11668041]
[1770784959159,21.17182966,82.012,81.941,10.9905]
[1770784959667,21.04553132,82.008,81.941,10.9905]
[1770784959862,21.04553132,82.008,81.947,2.40768728]
[1770784960066,21.04553132,82.008,81.917,2.42554368]
[1770784960269,21.04553132,82.008,81.931,2.42554368]
[1770784960666,21.04553132,82.008,81.93,8.14603421]
[1770784960667,21.04553132,82.008,81.951,2.42769702]
[1770784961071,21.04553132,82.008,81.961,10.9878]
[1770784961272,21.07259798,82.027,81.962,2.38895544]
[1770784962064,21.07259798,82.024,81.962,2.38895544]
[1770784962872,21.07259798,82.024,81.965,2.40812183]
[1770784963768,21.07259798,82.024,81.968,10.9869]
[1770784963966,21.07259798,82.024,81.969,2.44810202]
[1770784964161,21.07259798,82.024,81.972,10.9863]
[1770784964366,21.07259798,82.024,81.935,36.58]
[1770784964367,21.07259798,82.024,81.971,2.46708973]
[1770784964567,21.05902295,82.042,81.971,2.46708973]
[1770784965368,21.05023183,82.059,81.991,2.50109889]
[1770784965873,21.05023183,82.059,82.01,10.9813]
[1770784966069,21.05023183,82.059,81.991,2.50109889]
[1770784966269,21.05023183,82.059,81.975,2.51727625]
[1770784967372,21.04751993,82.054,81.975,2.51727625]
[1770784968471,21.04652838,82.052,81.993,10.9836]
[1770784969675,21.04652838,82.052,82.001,2.68655288]
[1770784969875,20.98992351,82.069,82.001,2.68655288]
[1770784970670,20.98992351,82.069,82.022,10.9797]
[1770784970870,20.98992351,82.069,82.001,2.68655288]
[1770784971070,20.98992351,82.069,81.989,97.3]
[1770784971374,20.98992351,82.069,81.985,2.70499274]
[1770784972077,8.14603421,82.09,82.001,3.01045528]
[1770784972078,22.23508915,82.064,82.001,3.01045528]
[1770784972981,22.23508915,82.064,82.0,8.14603421]
[1770784973683,22.23508915,82.061,82.0,8.14603421]
[1770784974077,22.23508915,82.061,82.001,3.21037342]
[1770784974479,22.23508915,82.061,82.01,8.14603421]
[1770784974679,22.23508915,82.061,82.016,10.9805]
[1770784975079,22.23508915,82.061,82.01,8.14603421]
[1770784975577,22.23508915,82.061,81.99,8.14603421]
[1770784975783,22.23508915,82.061,81.99,11.38266878]
[1770784975984,8.14603421,82.08,81.995,10.9833]
[1770784975985,22.23508915,82.059,81.995,10.9833]
[1770784976774,22.23508915,82.057,81.98,10.9853]
[1770784977173,22.23508915,82.057,81.97,8.14603421]
[1770784977680,22.23508915,82.043,81.979,10.9855]
[1770784978183,22.23508915,82.043,81.991,10.9839]
[1770784978676,22.23508915,82.043,82.0,10.9827]
[1770784979483,22.23508915,82.061,82.009,10.9815]
[1770784979874,22.23508915,82.061,81.991,3.29839417]
[1770784980073,22.23508915,82.061,81.97,8.15664207]
[1770784980074,22.23508915,82.047,81.979,10.9854]
[1770784980273,22.23508915,82.047,81.934,21.983]
[1770784980274,22.23508915,82.047,81.951,3.31240756]
[1770784980479,22.23508915,82.045,81.951,3.31240756]
[1770784980678,22.23508915,82.023,81.951,3.31240756]
[1770784980883,22.23508915,82.023,81.932,3.31426448]
[1770784981082,22.23508915,82.021,81.957,10.9884]
[1770784981476,22.23508915,82.019,81.931,3.52462339]
[1770784981786,22.23508915,82.019,81.956,10.9885]
[1770784981981,22.23508915,82.019,81.951,3.52462339]
[1770784982278,22.23508915,82.019,81.966,10.9872]
[1770784982485,22.23508915,82.019,81.95,8.16409521]
[1770784982981,22.23508915,82.01,81.944,10.9901]
[1770784983574,22.23508915,82.003,81.932,10.9917]
[1770784984285,22.23508915,82.003,81.935,3.64680965]
[1770784984488,22.23508915,82.003,81.92,8.16409521]
[1770784984689,22.23508915,82.0,81.94,10.9907]
[1770784984987,22.23508915,82.0,81.941,3.64876122]
[1770784985886,22.23508915,82.0,81.942,10.9905]
[1770784986284,22.23508915,81.997,81.941,3.64876122]
[1770784986484,22.23508915,81.997,81.931,10.9918]
[1770784986685,22.23508915,81.997,81.89,36.58]
[1770784986686,22.23508915,81.997,81.94,8.16409521]
[1770784987085,22.23508915,81.997,81.932,3.74605749]
[1770784988790,22.23508915,81.997,81.939,10.9907]
[1770784988991,22.23508915,81.979,81.896,3.76200246]
[1770784990287,22.23508915,81.97,81.906,10.9952]
[1770784992791,108.2,82.003,81.892,10.9971]
[1770784992792,22.23508915,81.969,81.892,10.9971]
[1770784992992,22.23508915,81.969,81.92,13.01276292]
[1770784993598,22.23508915,82.011,81.921,4.77635079]
[1770784994290,22.23508915,81.996,81.92,19.15749521]
[1770784995491,22.23508915,81.992,81.929,10.9922]
[1770784995688,22.23508915,81.992,81.929,15.4250136]
[1770784995890,22.23508915,81.992,81.929,10.9922]
[1770784996896,22.23508915,81.992,81.89,97.34]
[1770784996897,22.23508915,81.992,81.913,4.44657669]
[1770784997089,22.23508915,81.992,81.92,8.16409521]
[1770784997292,22.23508915,81.992,81.913,4.44657669]
[1770784997492,22.23508915,81.988,81.916,10.9939]
[1770784997689,22.23508915,81.988,81.92,8.16409521]
[1770784998093,22.23508915,81.988,81.927,4.65207446]
[1770784999092,22.23508915,81.988,81.92,8.16409521]
[1770784999293,22.23508915,81.988,81.911,4.66585569]
[1770785000095,26.0,81.999,81.88,8.16409521]
[1770785000096,22.46442902,81.973,81.88,8.16409521]
[1770785000292,22.46442902,81.973,81.881,4.57313923]
[1770785001700,22.46442902,81.96,81.894,10.9969]
[1770785002905,22.46442902,81.957,81.894,10.9969]
[1770785003705,22.46442902,81.947,81.881,10.9986]
[1770785003911,97.36,81.987,81.86,326.85267416]
[1770785003912,22.46442902,81.939,81.86,326.85267416]
[1770785004098,22.46442902,81.939,81.871,4.59426882]
[1770785004298,22.33549687,81.956,81.891,4.59498085]
[1770785004910,22.33549687,81.956,81.902,10.9958]
[1770785005606,22.33549687,81.98,81.91,8.16409521]
[1770785005809,22.33549687,81.98,81.911,4.93254877]
[1770785006012,22.33549687,81.98,81.942,10.9904]
[1770785006217,22.33549687,82.019,81.93,8.16409521]
[1770785006416,22.33549687,82.017,81.911,4.94373629]
[1770785006712,22.33549687,82.015,81.911,4.94373629]
[1770785007113,22.33549687,82.013,81.911,4.94373629]
[1770785007314,22.33549687,82.011,81.911,4.94373629]
[1770785007710,22.33549687,82.003,81.931,10.9918]
[1770785008816,22.33549687,81.997,81.94,10.9906]
[1770785009016,22.33549687,81.997,81.94,19.15469521]
[1770785009522,22.33549687,81.997,81.952,10.9891]
[1770785010518,22.33549687,81.997,81.942,10.9904]
[1770785010717,22.33549687,81.997,81.92,8.16409521]
[1770785011107,22.33549687,81.997,81.92,12.63579748]
[1770785011306,22.33549687,81.997,81.931,10.9918]
[1770785011715,22.33549687,81.997,81.921,4.50257027]
[1770785011914,22.33549687,81.986,81.911,4.50257027]
[1770785012314,22.33549687,81.986,81.937,10.9911]
[1770785012512,22.33549687,81.986,81.929,4.51153904]
[1770785012906,22.33549687,81.986,81.921,10.9933]
[1770785013317,22.33549687,81.986,81.91,8.16409521]
[1770785013520,22.33549687,81.972,81.91,10.9947]
[1770785014611,22.33549687,81.972,81.91,19.15879521]
[1770785014909,22.33549687,81.972,81.911,4.79076195]
[1770785015110,22.33549687,81.998,81.931,4.79951023]
[1770785016615,22.33549687,81.998,81.947,10.9897]
[1770785017015,22.33549687,81.998,81.931,4.79951023]
[1770785018618,22.33549687,82.015,81.95,12.82474722]
[1770785018817,22.33549687,82.015,81.951,4.66065201]
[1770785019219,22.33549687,82.015,81.955,10.9886]
[1770785019514,22.33549687,82.015,81.934,4.66861711]
[1770785020719,22.33549687,82.012,81.951,4.6428574]
[1770785021221,22.33549687,82.012,81.962,10.9877]
[1770785021416,22.33549687,82.012,81.951,4.6428574]
[1770785021715,22.33549687,82.032,81.981,10.9851]
[1770785022113,22.33549687,82.032,81.95,12.92304076]
[1770785022312,22.33549687,82.032,81.951,4.75894555]
[1770785023112,22.33549687,82.028,81.961,10.9879]
[1770785024222,22.33549687,82.024,81.97,10.9867]
[1770785024818,22.33549687,82.024,81.978,10.9855]
[1770785026323,22.33549687,82.024,81.968,10.9869]
[1770785027028,22.33549687,82.024,81.976,10.9858]
[1770785028931,22.33549687,82.024,81.984,10.9847]
[1770785029727,8.16409521,82.05,81.951,4.70104611]
[1770785029728,22.33549687,82.049,81.951,4.70104611]
[1770785030722,21.2362336,82.043,81.951,4.70104611]
[1770785031934,21.2362336,82.039,81.957,10.9884]
[1770785032139,21.2362336,82.039,81.958,16.09548967]
[1770785032837,21.2362336,82.029,81.958,16.09548967]
[1770785033627,21.2362336,82.029,81.96,10.9881]
[1770785034839,21.2362336,82.027,81.958,16.09548967]
[1770785035338,21.2362336,82.025,81.958,16.09548967]
[1770785035540,21.2362336,82.025,81.958,27.08368967]
[1770785036041,21.2362336,82.023,81.958,27.08368967]